bitfinex/quotes_BTCUSD_20241004
["timestamp","ask_amount","ask_price","bid_price","bid_amount"]
[1728001331897,0.16318671,60695.0,60694.0,0.16665606]
[1728001332287,0.027,60696.0,60695.0,0.164758]
[1728001332288,0.013,60696.0,60695.0,0.164758]
[1728001332765,0.012,60695.0,60694.0,0.16665606]
[1728001333260,0.012,60695.0,60694.0,0.35392617]
[1728001333497,0.009,60695.0,60694.0,0.35392617]
[1728001333723,0.24634789,60709.0,60708.0,0.164722]
[1728001333949,0.4095346,60709.0,60708.0,0.164722]
[1728001334399,0.16318671,60709.0,60708.0,0.164722]
[1728001334842,0.24634789,60719.0,60713.0,0.329416]
[1728001334847,0.24634789,60719.0,60716.0,0.164699]
[1728001335099,0.16318671,60718.0,60717.0,0.164698]
[1728001335335,0.16318671,60718.0,60713.0,0.329416]
[1728001335336,0.16318671,60718.0,60715.0,0.164701]
[1728001335800,0.16318671,60718.0,60711.0,0.329427]
[1728001335801,0.16318671,60718.0,60713.0,0.329418]
[1728001336029,0.2533669,60718.0,60714.0,0.164705]
[1728001336256,0.17418671,60718.0,60714.0,0.164705]
[1728001336478,0.17418671,60718.0,60713.0,0.329418]
[1728001336694,0.16318671,60718.0,60715.0,0.164703]
[1728001336936,0.33888271,60718.0,60713.0,0.164707]
[1728001337170,0.34888271,60718.0,60713.0,0.164707]
[1728001337395,0.164702,60716.0,60709.0,0.329436]
[1728001337612,0.23510883,60717.0,60710.0,0.329433]
[1728001337831,0.23510883,60717.0,60712.0,0.164711]
[1728001337832,0.39829554,60717.0,60712.0,0.164711]
[1728001338061,0.07725011,60716.0,60696.0,0.002]
[1728001338287,0.24043682,60716.0,60708.0,0.164722]
[1728001338543,0.07725011,60716.0,60710.0,0.329433]
[1728001338759,0.02582249,60715.0,60713.0,0.164708]
[1728001339194,0.02582249,60715.0,60713.0,0.164707]
[1728001339408,0.02582249,60715.0,60711.0,0.329427]
[1728001339664,0.02582249,60715.0,60714.0,0.164706]
[1728001339889,0.02582249,60715.0,60709.0,0.32944]
[1728001340104,0.21123974,60714.0,60702.0,0.164738]
[1728001340319,0.21123974,60714.0,60707.0,0.329449]
[1728001340529,0.21123974,60714.0,60708.0,0.164721]
[1728001340530,0.16471,60713.0,60708.0,0.164721]
[1728001340766,0.16318671,60712.0,60708.0,0.164721]
[1728001340986,0.16318671,60712.0,60707.0,0.32945]
[1728001341280,0.16318671,60712.0,60711.0,0.164714]
[1728001342392,0.16618671,60712.0,60711.0,0.164714]
[1728001342610,0.16318671,60712.0,60711.0,0.164714]
[1728001342863,0.004,60712.0,60711.0,0.164714]
[1728001343344,0.003,60712.0,60711.0,0.245214]
[1728001343601,0.006,60712.0,60711.0,0.245214]
[1728001344291,0.007,60712.0,60711.0,0.246214]
[1728001345390,0.001,60712.0,60711.0,0.246214]
[1728001345610,0.02582131,60717.0,60716.0,0.164701]
[1728001346780,0.02582131,60717.0,60716.0,0.165701]
[1728001347004,0.02582131,60717.0,60716.0,0.166701]
[1728001347454,0.001636,60719.0,60718.0,0.164695]
[1728001348605,0.001636,60719.0,60718.0,0.16798863]
[1728001349152,0.001636,60719.0,60718.0,0.53417534]
[1728001349360,0.24634789,60734.0,60733.0,0.44654519]
[1728001350076,0.24634789,60746.0,60745.0,0.164622]
[1728001350754,0.02580943,60746.0,60742.0,0.329256]
[1728001350972,0.02580943,60746.0,60743.0,0.164626]
[1728001351483,0.02580943,60746.0,60745.0,0.164622]
[1728001351692,0.24634789,60752.0,60750.0,0.164609]
[1728001352330,0.001636,60753.0,60750.0,0.164609]
[1728001352579,0.001636,60753.0,60750.0,0.16790116]
[1728001352824,0.001636,60753.0,60750.0,0.25240116]
[1728001353052,0.001636,60753.0,60750.0,0.34690116]
[1728001353302,0.001636,60753.0,60750.0,0.343609]
[1728001353721,0.001636,60753.0,60750.0,0.341609]
[1728001353935,0.002636,60751.0,60750.0,0.345609]
[1728001354177,0.003636,60751.0,60750.0,0.38996495]
[1728001354415,0.003636,60751.0,60750.0,0.55315166]
[1728001355311,0.003636,60751.0,60750.0,1.20245109]
[1728001355540,0.001636,60753.0,60752.0,0.264603]
[1728001355749,0.001636,60753.0,60752.0,0.43108105]
[1728001355956,0.001636,60753.0,60752.0,0.42978971]
[1728001356411,0.001636,60753.0,60752.0,0.43478971]
[1728001356677,0.002636,60753.0,60752.0,0.43678971]
[1728001356914,0.001636,60753.0,60752.0,0.42778971]
[1728001357124,0.001636,60753.0,60752.0,0.43478971]
[1728001357354,0.002636,60753.0,60752.0,0.42978971]
[1728001357578,0.003636,60753.0,60752.0,0.44378971]
[1728001357809,0.003636,60753.0,60752.0,0.44578971]
[1728001358263,0.003636,60753.0,60752.0,0.43878971]
[1728001358692,0.002636,60753.0,60752.0,0.42978971]
[1728001358951,0.003636,60753.0,60752.0,0.43178971]
[1728001359137,0.002636,60753.0,60752.0,0.44078971]
[1728001359557,0.002636,60753.0,60752.0,0.44478971]
[1728001359558,0.003636,60753.0,60752.0,0.44478971]
[1728001359768,0.003636,60753.0,60752.0,0.44278971]
[1728001359996,0.003636,60753.0,60752.0,0.43378971]
[1728001360496,0.003636,60753.0,60752.0,0.44278971]
[1728001360732,0.004636,60753.0,60752.0,0.44678971]
[1728001360956,0.004636,60753.0,60752.0,0.44478971]
[1728001362061,0.001636,60753.0,60752.0,0.42778971]
[1728001362281,0.003636,60753.0,60752.0,0.44278971]
[1728001362728,0.002636,60753.0,60752.0,0.43078971]
[1728001363188,0.002636,60753.0,60752.0,0.43978971]
[1728001363404,0.003636,60753.0,60752.0,0.44278971]
[1728001363618,0.002636,60753.0,60752.0,0.6183879]
[1728001363839,0.003636,60753.0,60752.0,0.6303879]
[1728001364592,0.003636,60753.0,60752.0,0.44278971]
[1728001364987,0.002636,60753.0,60752.0,0.43978971]
[1728001365246,0.001636,60753.0,60752.0,0.42778971]
[1728001365480,0.003636,60753.0,60752.0,0.44278971]
[1728001365699,0.003636,60753.0,60752.0,0.43978971]
[1728001365941,0.003636,60753.0,60752.0,0.43078971]
[1728001366198,0.002636,60753.0,60752.0,0.46978971]
[1728001366409,0.001636,60761.0,60760.0,0.166581]
[1728001366636,0.001636,60761.0,60760.0,0.54037209]
[1728001367404,0.24416133,60768.0,60767.0,0.164563]
[1728001368058,0.001636,60769.0,60766.0,0.18760438]
[1728001368281,0.001636,60769.0,60768.0,0.16456]
[1728001368778,0.001636,60769.0,60761.0,0.00429071]
[1728001368986,0.001636,60769.0,60768.0,0.16456]
[1728001369879,0.001636,60769.0,60768.0,0.16856]
[1728001370313,0.001636,60769.0,60768.0,0.16456]
[1728001370500,0.001636,60769.0,60768.0,0.16556]
[1728001371273,0.001636,60769.0,60768.0,0.001]
[1728001371495,0.166193,60769.0,60768.0,0.001]
[1728001371979,0.166193,60769.0,60768.0,0.003]
[1728001372201,0.166193,60769.0,60768.0,0.005]
[1728001372421,0.164568,60765.0,60761.0,0.164577]
[1728001372640,0.329122,60768.0,60762.0,0.164574]
[1728001372641,0.49230871,60768.0,60762.0,0.164574]
[1728001372854,0.49231371,60767.0,60759.0,0.329168]
[1728001373084,0.164569,60765.0,60761.0,0.164578]
[1728001373332,0.164569,60765.0,60757.0,0.164589]
[1728001373333,0.329147,60764.0,60757.0,0.164589]
[1728001373587,0.164577,60762.0,60758.0,0.164586]
[1728001373794,0.16457,60765.0,60761.0,0.164577]
[1728001374266,0.57547889,60766.0,60757.0,0.329177]
[1728001374483,0.164574,60763.0,60759.0,0.164583]
[1728001374738,0.41091389,60766.0,60762.0,0.164575]
[1728001374978,0.41091389,60766.0,60759.0,0.164584]
[1728001374979,0.164576,60762.0,60759.0,0.164584]
[1728001375216,0.164576,60762.0,60761.0,0.001]
[1728001375462,0.164573,60763.0,60761.0,0.002]
[1728001375674,0.164573,60763.0,60759.0,0.164582]
[1728001376389,0.1723,60761.0,60749.0,0.16461]
[1728001376587,0.1723,60761.0,60740.0,0.24634789]
[1728001376588,0.164613,60749.0,60748.0,0.24634789]
[1728001376802,0.329197,60754.0,60746.0,0.164619]
[1728001376803,0.164609,60750.0,60746.0,0.164619]
[1728001377024,0.16461,60750.0,60746.0,0.164619]
[1728001377245,0.164613,60749.0,60744.0,0.32925]
[1728001377466,0.164604,60752.0,60745.0,0.329244]
[1728001377682,0.329209,60752.0,60734.0,0.0756]
[1728001377897,0.164609,60750.0,60746.0,0.164618]
[1728001378418,0.329209,60752.0,60746.0,0.164618]
[1728001378419,0.164604,60752.0,60748.0,0.164613]
[1728001378681,0.164604,60752.0,60744.0,0.329246]
[1728001378682,0.24634789,60749.0,60744.0,0.009]
[1728001378920,0.16318671,60752.0,60745.0,0.006]
[1728001378921,0.44468541,60751.0,60745.0,0.006]
[1728001379155,0.164612,60749.0,60744.0,0.009]
[1728001379389,0.001,60750.0,60746.0,0.172619]
[1728001379663,0.001,60750.0,60749.0,0.164611]
[1728001381272,0.164576,60763.0,60758.0,0.164585]
[1728001381487,0.164576,60763.0,60756.0,0.32918]
[1728001381488,0.164579,60761.0,60757.0,0.164587]
[1728001381949,0.164585,60759.0,60755.0,0.164594]
[1728001382214,0.329154,60762.0,60749.0,0.016]
[1728001382454,0.16318671,60759.0,60749.0,0.329222]
[1728001382700,0.16318671,60759.0,60736.0,0.334293]
[1728001382701,0.7854333,60758.0,60757.0,0.001]
[1728001382933,0.164607,60751.0,60747.0,0.164615]
[1728001383146,0.164607,60751.0,60744.0,0.329249]
[1728001383147,0.94616041,60758.0,60746.0,0.164618]
[1728001383388,0.2814987,60753.0,60742.0,0.32926]
[1728001383607,0.164619,60747.0,60743.0,0.164627]
[1728001383821,0.16318671,60752.0,60728.0,0.0756]
[1728001383822,0.16318671,60752.0,60734.0,0.329304]
[1728001384067,0.329212,60751.0,60731.0,0.00431577]
[1728001384300,0.41095989,60749.0,60745.0,0.164621]
[1728001384526,0.02580874,60748.0,60745.0,0.164621]
[1728001384776,0.02580874,60748.0,60746.0,0.164619]
[1728001385463,0.02580874,60748.0,60745.0,0.164622]
[1728001385698,0.164622,60745.0,60741.0,0.164631]
[1728001385942,0.02880874,60748.0,60744.0,0.164624]
[1728001386137,0.03280874,60748.0,60742.0,0.329257]
[1728001386430,0.19742374,60748.0,60744.0,0.164624]
[1728001386880,0.19742374,60748.0,60745.0,0.16462]
[1728001386881,0.007,60748.0,60745.0,0.16462]
[1728001387139,0.16318671,60747.0,60736.0,0.329291]
[1728001387397,0.329241,60746.0,60736.0,0.329291]
[1728001387630,0.164625,60744.0,60739.0,0.164636]
[1728001388080,0.164635,60741.0,60727.0,0.1]
[1728001388306,0.407657,60743.0,60732.0,0.329313]
[1728001388527,0.164633,60741.0,60734.0,0.3293]
[1728001388743,0.0784,60743.0,60739.0,0.001]
[1728001388982,0.0784,60743.0,60739.0,0.002]
[1728001389208,0.0784,60743.0,60739.0,0.001]
[1728001389447,0.164635,60741.0,60736.0,0.000817]
[1728001389697,0.164635,60741.0,60737.0,0.164643]
[1728001390145,0.02581074,60740.0,60738.0,0.16464]
[1728001390376,0.02581074,60740.0,60738.0,0.164639]
[1728001391085,0.02581074,60740.0,60736.0,0.000817]
[1728001391347,0.407661,60743.0,60739.0,0.164638]
[1728001391348,0.002,60741.0,60739.0,0.164638]
[1728001391559,0.21341661,60754.0,60740.0,0.00329253]
[1728001391784,0.21341661,60754.0,60738.0,0.2814987]
[1728001391785,0.164604,60752.0,60748.0,0.164613]
[1728001392004,0.164599,60754.0,60750.0,0.164607]
[1728001392257,0.16318671,60755.0,60749.0,0.329218]
[1728001392539,0.16318671,60755.0,60752.0,0.164602]
[1728001392761,0.164601,60753.0,60750.0,0.164606]
[1728001392987,0.16318671,60755.0,60731.0,0.0974]
[1728001393260,0.16318671,60755.0,60729.0,0.467]
[1728001393261,0.164629,60743.0,60729.0,0.467]
[1728001393498,0.164629,60743.0,60735.0,0.329297]
[1728001393499,0.329264,60742.0,60735.0,0.329297]
[1728001393772,0.164633,60741.0,60735.0,0.329297]
[1728001394011,0.164633,60741.0,60733.0,0.329306]
[1728001394012,0.329264,60742.0,60733.0,0.329306]
[1728001394258,0.11159067,60741.0,60735.0,0.164649]
[1728001394478,0.11159067,60741.0,60733.0,0.329306]
[1728001394479,0.164642,60738.0,60734.0,0.164651]
[1728001394741,0.329274,60740.0,60733.0,0.329306]
[1728001394742,0.164644,60737.0,60733.0,0.329306]
[1728001394980,0.329278,60739.0,60730.0,0.329321]
[1728001395187,0.164641,60738.0,60734.0,0.164651]
[1728001395634,0.329273,60740.0,60736.0,0.001817]
[1728001395879,0.41099189,60737.0,60736.0,0.001817]
[1728001396091,0.164644,60737.0,60736.0,0.000817]
[1728001396321,0.21345461,60740.0,60736.0,0.000817]
[1728001396550,0.21200532,60740.0,60736.0,0.001817]
[1728001396771,0.16318671,60740.0,60737.0,0.164642]
[1728001397004,0.32782271,60740.0,60737.0,0.164642]
[1728001397261,0.164639,60739.0,60736.0,0.001817]
[1728001397480,0.005,60737.0,60736.0,0.001817]
[1728001397671,0.005,60737.0,60736.0,0.000817]
[1728001397915,0.005,60737.0,60736.0,0.002817]
[1728001398377,0.003,60740.0,60736.0,0.002817]
[1728001398595,0.164618,60747.0,60744.0,0.164625]
[1728001398895,0.164618,60747.0,60741.0,0.329262]
[1728001398896,0.32780471,60747.0,60743.0,0.164627]
[1728001399090,0.32780471,60747.0,60744.0,0.164624]
[1728001399303,0.07322792,60752.0,60736.0,0.001817]
[1728001399304,0.04881861,60753.0,60752.0,0.164603]
[1728001399537,0.04881861,60757.0,60738.0,0.00329216]
[1728001399772,0.16318671,60757.0,60753.0,0.164598]
[1728001399977,0.16318671,60757.0,60752.0,0.329205]
[1728001400235,0.16318671,60757.0,60749.0,0.329221]
[1728001400472,0.16318671,60757.0,60739.0,0.329274]
[1728001400473,0.16318671,60757.0,60751.0,0.329212]
[1728001400686,0.16318671,60757.0,60753.0,0.1646]
[1728001401156,0.16818671,60757.0,60753.0,0.1646]
[1728001401377,0.32777671,60757.0,60753.0,0.1646]
[1728001401590,0.33177671,60757.0,60753.0,0.1646]
[1728001401807,0.32877671,60757.0,60752.0,0.164603]
[1728001402037,0.164593,60756.0,60752.0,0.164603]
[1728001402267,0.1,60760.0,60750.0,0.329216]
[1728001402497,0.001,60757.0,60750.0,0.329216]
[1728001402765,0.001,60757.0,60744.0,0.08]
[1728001402980,0.001,60757.0,60756.0,0.164592]
[1728001403203,0.005,60757.0,60756.0,0.164592]
[1728001403624,0.001,60757.0,60756.0,0.164592]
[1728001403861,0.004,60757.0,60756.0,0.164592]
[1728001404094,0.19339354,60757.0,60751.0,0.329211]
[1728001404313,0.001,60756.0,60751.0,0.329212]
[1728001404786,0.001,60756.0,60755.0,0.164595]
[1728001405225,0.02880354,60757.0,60754.0,0.164597]
[1728001405449,0.02880354,60757.0,60755.0,0.164594]
[1728001405673,0.02880354,60757.0,60756.0,0.002]
[1728001406596,0.02580354,60757.0,60756.0,0.002]
[1728001406825,0.21351801,60759.0,60756.0,0.002]
[1728001407275,0.16459,60757.0,60756.0,0.002]
[1728001407499,0.16459,60757.0,60747.0,0.329231]
[1728001407500,0.164597,60755.0,60750.0,0.164606]
[1728001407718,0.164597,60755.0,60751.0,0.164605]
[1728001408718,0.44468541,60757.0,60748.0,0.329224]
[1728001408942,0.1646,60754.0,60746.0,0.329237]
[1728001409131,0.164601,60753.0,60748.0,0.329225]
[1728001409355,0.164598,60754.0,60750.0,0.164608]
[1728001409779,0.164601,60753.0,60748.0,0.329225]
[1728001410026,0.164602,60753.0,60749.0,0.164611]
[1728001410457,0.164602,60753.0,60750.0,0.164608]
[1728001411343,0.166602,60753.0,60750.0,0.164608]
[1728001411559,0.166602,60753.0,60742.0,0.329259]
[1728001411560,0.408507,60752.0,60742.0,0.329259]
[1728001411850,0.16518671,60753.0,60735.0,0.24634789]
[1728001411851,0.16518671,60753.0,60743.0,0.24634789]
[1728001412094,0.32978771,60753.0,60749.0,0.16461]
[1728001412304,0.164603,60752.0,60749.0,0.16461]
[1728001413193,0.164603,60752.0,60747.0,0.164615]
[1728001413861,0.001,60753.0,60752.0,0.164603]
[1728001414319,0.04894875,60756.0,60753.0,0.164599]
[1728001414539,0.24634789,60757.0,60753.0,0.164599]
[1728001414540,0.04894875,60755.0,60754.0,0.164598]
[1728001414760,0.31977102,60757.0,60753.0,0.329201]
[1728001414761,0.29529664,60757.0,60753.0,0.329201]
[1728001414981,0.04894875,60757.0,60756.0,0.164592]
[1728001415206,0.07342313,60758.0,60756.0,0.164592]
[1728001415423,0.04902261,60757.0,60753.0,0.329201]
[1728001415671,0.04902261,60757.0,60753.0,0.3292]
[1728001415672,0.04903649,60756.0,60753.0,0.3292]
[1728001415886,0.04903649,60756.0,60755.0,0.164595]
[1728001416104,0.04903649,60756.0,60755.0,0.164592]
[1728001416562,0.07342313,60757.0,60755.0,0.164592]
[1728001417266,0.07342313,60757.0,60755.0,0.001]
[1728001417498,0.07358087,60756.0,60755.0,0.164595]
[1728001417729,0.09810782,60757.0,60755.0,0.164595]
[1728001417950,0.32434705,60756.0,60755.0,0.164595]
[1728001418218,0.07360096,60756.0,60755.0,0.164595]
[1728001418431,0.04907833,60756.0,60755.0,0.164595]
[1728001418671,0.09810782,60756.0,60755.0,0.164595]
[1728001418905,0.14843893,60758.0,60755.0,0.329189]
[1728001418906,0.09810782,60757.0,60755.0,0.329189]
[1728001419087,0.32449909,60757.0,60756.0,0.164592]
[1728001419576,0.04907785,60757.0,60756.0,0.164592]
[1728001419775,0.09810782,60760.0,60755.0,0.329189]
[1728001419776,0.04907785,60760.0,60759.0,0.164584]
[1728001419989,0.07361678,60762.0,60755.0,0.5168638]
[1728001419990,0.04907785,60762.0,60761.0,0.164579]
[1728001420216,0.04907785,60763.0,60762.0,0.164576]
[1728001420448,0.07361678,60764.0,60763.0,0.164573]
[1728001420449,0.04907785,60764.0,60763.0,0.164573]
[1728001420662,0.07361678,60765.0,60757.0,0.329179]
[1728001420874,0.04906349,60763.0,60758.0,0.329172]
[1728001421084,0.04906349,60762.0,60761.0,0.164579]
[1728001421302,0.04906349,60763.0,60746.0,0.1896748]
[1728001421539,0.05006349,60763.0,60761.0,0.164578]
[1728001421769,0.04906349,60762.0,60761.0,0.164578]
[1728001422193,0.04906349,60762.0,60759.0,0.329165]
[1728001422194,0.05006349,60763.0,60762.0,0.164576]
[1728001423083,0.04906349,60763.0,60762.0,0.164576]
[1728001423344,0.05006349,60763.0,60762.0,0.164576]
[1728001424201,0.05106349,60763.0,60762.0,0.164576]
[1728001424404,0.002,60763.0,60762.0,0.164576]
[1728001424647,0.002,60763.0,60759.0,0.329165]
[1728001424901,0.05106349,60763.0,60761.0,0.164577]
[1728001425110,0.05106349,60763.0,60762.0,0.164576]
[1728001425332,0.002,60763.0,60762.0,0.164576]
[1728001426205,0.001,60763.0,60762.0,0.164576]
[1728001426413,0.002,60763.0,60762.0,0.164576]
[1728001426672,0.001,60763.0,60762.0,0.164576]
[1728001426892,0.001,60763.0,60762.0,0.329151]
[1728001427109,0.002,60763.0,60762.0,0.493727]
[1728001427348,0.0258004,60765.0,60764.0,0.164571]
[1728001427788,0.0258004,60765.0,60763.0,0.329147]
[1728001427789,0.001634,60768.0,60763.0,0.329147]
[1728001428039,0.001634,60768.0,60767.0,0.164563]
[1728001429406,0.001634,60768.0,60767.0,0.167563]
[1728001430069,0.001634,60768.0,60767.0,0.170563]
[1728001431880,0.166194,60768.0,60767.0,0.006]
[1728001432333,0.29075749,60768.0,60767.0,0.006]
[1728001432543,0.31531078,60768.0,60767.0,0.006]
[1728001432756,0.47849749,60768.0,60767.0,0.006]
[1728001433177,0.47849749,60768.0,60762.0,0.164574]
[1728001433178,0.164567,60766.0,60762.0,0.164574]
[1728001433384,0.21352557,60766.0,60762.0,0.164574]
[1728001433629,0.21352557,60766.0,60763.0,0.164572]
[1728001434929,0.37809257,60766.0,60759.0,0.329166]
[1728001435144,0.37809257,60766.0,60763.0,0.001]
[1728001435145,0.21352657,60765.0,60763.0,0.001]
[1728001435583,0.21353376,60765.0,60763.0,0.001]
[1728001436030,0.23933453,60765.0,60763.0,0.001]
[1728001436906,0.21453376,60765.0,60762.0,0.164576]
[1728001437129,0.21353376,60765.0,60763.0,0.001]
[1728001437355,0.164571,60764.0,60763.0,0.001]
[1728001437634,0.21453476,60765.0,60761.0,0.164577]
[1728001437850,0.21553476,60765.0,60761.0,0.164577]
[1728001438055,0.164572,60764.0,60757.0,0.329178]
[1728001438264,0.05096576,60765.0,60757.0,0.329178]
[1728001438265,0.04996576,60765.0,60757.0,0.329178]
[1728001438504,0.21215247,60764.0,60749.0,0.24634789]
[1728001438720,0.21215247,60764.0,60757.0,0.329179]
[1728001438721,0.164577,60762.0,60757.0,0.329179]
[1728001438949,0.21215247,60764.0,60749.0,0.24634789]
[1728001438950,0.04896576,60763.0,60749.0,0.24634789]
[1728001439182,0.04896576,60763.0,60760.0,0.16458]
[1728001439404,0.37672447,60764.0,60760.0,0.16458]
[1728001439614,0.164575,60763.0,60757.0,0.329178]
[1728001439821,0.164575,60763.0,60759.0,0.164583]
[1728001439822,0.164577,60762.0,60759.0,0.164583]
[1728001440033,0.164577,60762.0,60757.0,0.329178]
[1728001440242,0.025801,60763.0,60758.0,0.164587]
[1728001440243,0.164579,60761.0,60758.0,0.164587]
[1728001440450,0.07678264,60763.0,60758.0,0.164587]
[1728001440451,0.164578,60762.0,60758.0,0.164587]
[1728001440663,0.16458,60761.0,60757.0,0.164589]
[1728001440871,0.16458,60761.0,60755.0,0.329187]
[1728001441089,0.001,60762.0,60745.0,0.10924479]
[1728001441316,0.001,60762.0,60757.0,0.164588]
[1728001441317,0.16458,60761.0,60757.0,0.164588]
[1728001441569,0.41092789,60761.0,60757.0,0.164588]
[1728001442208,0.21356164,60761.0,60757.0,0.164588]
[1728001442434,0.04898164,60761.0,60754.0,0.329192]
[1728001442666,0.04898164,60761.0,60756.0,0.16459]
[1728001442888,0.21359386,60761.0,60750.0,0.000817]
[1728001443098,0.04901286,60761.0,60759.0,0.164584]
[1728001443302,0.001,60762.0,60759.0,0.164584]
[1728001443303,0.04901286,60760.0,60759.0,0.164584]
[1728001443565,0.04903038,60760.0,60759.0,0.164584]
[1728001443779,0.04903038,60760.0,60758.0,0.164587]
[1728001444048,0.04903038,60760.0,60756.0,0.329182]
[1728001444263,0.07354557,60761.0,60759.0,0.164584]
[1728001444490,0.07354557,60761.0,60760.0,0.164581]
[1728001444725,0.04905513,60761.0,60760.0,0.164581]
[1728001444951,0.04905513,60762.0,60759.0,0.330168]
[1728001445186,0.07354557,60763.0,60762.0,0.164576]
[1728001445414,0.09806076,60764.0,60761.0,0.329157]
[1728001445668,0.09806076,60765.0,60764.0,0.164571]
[1728001445873,0.09806076,60765.0,60761.0,0.51680017]
[1728001445874,0.04906437,60767.0,60763.0,0.33243711]
[1728001446125,0.07522948,60768.0,60758.0,0.076]
[1728001446126,0.24634789,60765.0,60764.0,0.493712]
[1728001446330,0.04906437,60766.0,60762.0,0.329148]
[1728001446593,0.04906437,60765.0,60764.0,0.164568]
[1728001446820,0.07359548,60765.0,60753.0,0.00418602]
[1728001447060,0.07359548,60765.0,60745.0,0.531042]
[1728001447061,0.04907675,60762.0,60760.0,0.329163]
[1728001447284,0.04907675,60761.0,60760.0,0.493744]
[1728001448629,0.02580113,60764.0,60762.0,0.329151]
[1728001448837,0.02580113,60764.0,60763.0,0.164573]
[1728001450191,0.02580113,60764.0,60763.0,0.168573]
[1728001450912,0.02580113,60764.0,60763.0,0.172573]
[1728001451375,0.02580113,60764.0,60763.0,0.168573]
[1728001451821,0.02580113,60764.0,60763.0,0.177573]
[1728001452062,0.09941626,60764.0,60763.0,0.177573]
[1728001452501,0.04908024,60764.0,60763.0,0.173573]
[1728001452753,0.04908024,60765.0,60764.0,0.164571]
[1728001453030,0.09979449,60768.0,60765.0,0.329135]
[1728001453031,0.05071424,60768.0,60765.0,0.329135]
[1728001453276,0.05071424,60768.0,60767.0,0.164563]
[1728001454177,0.001634,60768.0,60767.0,0.164563]
[1728001454393,0.05071424,60768.0,60767.0,0.164563]
[1728001455064,0.001634,60768.0,60767.0,0.164563]
[1728001455948,0.05072266,60768.0,60767.0,0.164563]
[1728001456174,0.002634,60768.0,60767.0,0.170563]
[1728001456393,0.001634,60768.0,60767.0,0.170563]
[1728001456874,0.001634,60768.0,60767.0,0.175563]
[1728001457087,0.05072768,60768.0,60767.0,0.170563]
[1728001457565,0.05072768,60768.0,60767.0,0.164563]
[1728001457784,0.05072768,60768.0,60767.0,0.168563]
[1728001458029,0.05172768,60768.0,60767.0,0.174563]
[1728001459193,0.002634,60768.0,60767.0,0.174563]
[1728001459892,0.002634,60768.0,60767.0,0.170563]
[1728001460136,0.002634,60768.0,60767.0,0.176563]
[1728001460347,0.07625437,60768.0,60767.0,0.17738]
[1728001461662,0.07631991,60768.0,60767.0,0.17738]
[1728001464030,0.07631991,60768.0,60767.0,0.012817]
[1728001464296,0.41354189,60768.0,60767.0,0.012817]
[1728001464541,0.73185766,60768.0,60767.0,0.012817]
[1728001465042,0.7839233,60768.0,60767.0,0.012817]
[1728001465309,0.8839233,60768.0,60767.0,0.012817]
[1728001465527,0.8839233,60768.0,60757.0,0.000817]
[1728001465528,0.42843017,60758.0,60757.0,0.000817]
[1728001465777,0.96649511,60758.0,60757.0,0.000817]
[1728001466013,1.13711573,60758.0,60757.0,0.000817]
[1728001466251,0.96646263,60758.0,60757.0,0.000817]
[1728001466716,1.13736786,60758.0,60757.0,0.000817]
[1728001466932,0.45504522,60758.0,60757.0,0.000817]
[1728001467179,0.47326395,60758.0,60757.0,0.000817]
[1728001467392,0.30867695,60758.0,60757.0,0.000817]
[1728001467616,0.30879937,60758.0,60757.0,0.000817]
[1728001467867,0.47238637,60758.0,60757.0,0.000817]
[1728001468626,0.47238637,60758.0,60757.0,0.165407]
[1728001468627,0.23159937,60758.0,60757.0,0.165407]
[1728001468857,0.07767915,60758.0,60757.0,0.165407]
[1728001469113,0.09823887,60760.0,60757.0,0.165407]
[1728001469114,0.07367915,60759.0,60758.0,0.164587]
[1728001469578,0.09823887,60761.0,60757.0,0.329995]
[1728001469579,0.004,60758.0,60757.0,0.494585]
[1728001469861,0.07767815,60758.0,60757.0,0.494585]
[1728001470106,0.07767815,60758.0,60757.0,0.503585]
[1728001470107,0.004,60758.0,60757.0,0.503585]
[1728001470350,0.07367815,60759.0,60758.0,0.164587]
[1728001470594,0.07367815,60759.0,60758.0,0.168587]
[1728001470830,0.09823887,60760.0,60759.0,0.164584]
[1728001471061,0.09823887,60760.0,60757.0,0.333995]
[1728001471062,0.32623537,60760.0,60757.0,0.333995]
[1728001471309,0.09824011,60760.0,60759.0,0.493749]
[1728001472044,0.22809993,60760.0,60759.0,0.329165]
[1728001472301,0.07367811,60760.0,60759.0,0.493749]
[1728001473027,0.07367811,60760.0,60759.0,0.497749]
[1728001473264,0.3261282,60760.0,60759.0,0.497749]
[1728001473503,0.0982358,60761.0,60760.0,0.164581]
[1728001474266,0.0982358,60761.0,60759.0,0.008]
[1728001474485,0.2276756,60760.0,60759.0,0.008]
[1728001474707,0.4728566,60760.0,60759.0,0.008]
[1728001475379,0.4728566,60760.0,60759.0,0.004]
[1728001475607,0.47254589,60760.0,60759.0,0.004]
[1728001476127,0.72017195,60760.0,60759.0,0.004]
[1728001476351,0.72017195,60760.0,60757.0,0.000817]
[1728001476352,0.264587,60758.0,60757.0,0.000817]
[1728001476578,0.94198177,60758.0,60757.0,0.000817]
[1728001476801,0.164606,60751.0,60742.0,0.57560389]
[1728001477011,0.164606,60751.0,60745.0,0.164621]
[1728001477012,0.74280077,60751.0,60745.0,0.164621]
[1728001477700,0.82340077,60751.0,60741.0,0.164632]
[1728001477917,0.97071019,60751.0,60744.0,0.164624]
[1728001478149,0.97071019,60751.0,60742.0,0.329257]
[1728001478364,0.82340077,60751.0,60740.0,0.329267]
[1728001478591,0.82340077,60751.0,60743.0,0.164627]
[1728001479036,0.82340077,60751.0,60750.0,0.001817]
[1728001479037,0.82940077,60751.0,60750.0,0.001817]
[1728001479465,0.83440077,60751.0,60750.0,0.001817]
[1728001479948,0.83300169,60751.0,60750.0,0.001817]
[1728001480635,0.64535852,60751.0,60750.0,0.001817]
[1728001480858,0.26277358,60751.0,60750.0,0.001817]
[1728001481109,0.26277358,60751.0,60750.0,0.166426]